[Event "Rapid Tournament"]
[Site "Biel, Switzerland"]
[Date "2021.07.25"]
[Round "4.2"]
[White "Pichot, Alan"]
[Black "Keymer, Vincent"]
[Result "0-1"]
[TimeControl "15min + 5 sec per move"]
[WhiteTitle "GM"]
[BlackTitle "GM"]
[WhiteFideId "110973"]
[BlackFideId "12940690"]
[WhiteElo "2533"]
[BlackElo "2543"]

1. e4 {[%clk 00:15:08]} {[%emt 00:00:01]} c6 {[%clk 00:15:10]} 2. Nf3 {[%clk
00:15:09]} {[%emt 00:00:03]} d5 {[%clk 00:15:15]} 3. d3 {[%clk 00:15:12]}
{[%emt 00:00:02]} dxe4 {[%clk 00:15:19]} 4. dxe4 {[%clk 00:15:16]} {[%emt
00:00:01]} Qxd1+ {[%clk 00:15:22]} {[%emt 00:00:02]} 5. Kxd1 {[%clk 00:15:19]}
{[%emt 00:00:01]} Nd7 {[%clk 00:15:26]} {[%emt 00:00:01]} 6. a4 {[%clk
00:15:05]} {[%emt 00:00:19]} Ngf6 {[%clk 00:15:30]} {[%emt 00:00:02]} 7. Nbd2
{[%clk 00:14:53]} {[%emt 00:00:17]} Nc5 {[%clk 00:14:42]} {[%emt 00:00:54]} 8.
Bd3 {[%clk 00:13:31]} {[%emt 00:01:26]} g6 {[%clk 00:14:22]} {[%emt 00:00:25]}
9. b4 {[%clk 00:12:39]} {[%emt 00:00:57]} Nxd3 {[%clk 00:13:59]} {[%emt
00:00:28]} 10. cxd3 {[%clk 00:12:42]} {[%emt 00:00:01]} a5 {[%clk 00:12:08]}
{[%emt 00:01:57]} 11. bxa5 {[%clk 00:11:41]} {[%emt 00:01:06]} Rxa5 {[%clk
00:11:54]} {[%emt 00:00:19]} 12. Bb2 {[%clk 00:11:44]} {[%emt 00:00:02]} Bg7
{[%clk 00:11:27]} {[%emt 00:00:33]} 13. Bc3 {[%clk 00:11:47]} {[%emt 00:00:02]}
Ra6 {[%clk 00:09:05]} {[%emt 00:02:28]} 14. Kc2 {[%clk 00:11:45]} {[%emt
00:00:06]} O-O {[%clk 00:08:46]} {[%emt 00:00:23]} 15. Rhb1 {[%clk 00:11:40]}
{[%emt 00:00:10]} Rd8 {[%clk 00:07:27]} {[%emt 00:01:24]} 16. Nb3 {[%clk
00:08:38]} {[%emt 00:03:07]} Ng4 {[%clk 00:04:47]} {[%emt 00:02:46]} 17. Rf1
{[%clk 00:07:54]} {[%emt 00:00:49]} c5 {[%clk 00:03:40]} {[%emt 00:01:12]} 18.
h3 {[%clk 00:04:07]} {[%emt 00:03:52]} Nf6 {[%clk 00:03:44]} {[%emt 00:00:02]}
19. Ne5 {[%clk 00:03:21]} {[%emt 00:00:51]} Nd7 {[%clk 00:03:43]} {[%emt
00:00:07]} 20. Nc4 {[%clk 00:02:50]} {[%emt 00:00:35]} b6 {[%clk 00:03:26]}
{[%emt 00:00:21]} 21. Rfb1 {[%clk 00:02:18]} {[%emt 00:00:37]} Bb7 {[%clk
00:02:50]} {[%emt 00:00:42]} 22. a5 {[%clk 00:01:50]} {[%emt 00:00:33]} b5
{[%clk 00:01:51]} {[%emt 00:01:04]} 23. Ncd2 {[%clk 00:01:54]} Rd6 {[%clk
00:01:11]} {[%emt 00:00:45]} 24. Bxg7 {[%clk 00:00:58]} {[%emt 00:01:00]} Kxg7
{[%clk 00:01:15]} 25. f4 {[%clk 00:00:38]} {[%emt 00:00:25]} e5 {[%clk
00:00:48]} {[%emt 00:00:33]} 26. g3 {[%clk 00:00:18]} {[%emt 00:00:25]} Ba6
{[%clk 00:00:41]} {[%emt 00:00:12]} 27. Nc1 {[%clk 00:00:19]} {[%emt 00:00:04]}
f6 {[%clk 00:00:28]} {[%emt 00:00:19]} 28. Ra3 {[%clk 00:00:15]} {[%emt
00:00:08]} b4 {[%clk 00:00:26]} {[%emt 00:00:07]} 29. Rab3 {[%clk 00:00:12]}
{[%emt 00:00:08]} Nb8 {[%clk 00:00:30]} 30. fxe5 fxe5 {[%clk 00:00:35]} 31. Kb2
{[%clk 00:00:10]} {[%emt 00:00:07]} Nc6 {[%emt 00:00:06]} 32. Ra1 {[%clk
00:00:13]} Nd4 {[%clk 00:00:36]} {[%emt 00:00:03]} 33. Nc4 {[%clk 00:00:09]}
{[%emt 00:00:09]} Rf6 {[%clk 00:00:31]} {[%emt 00:00:10]} 34. Ka2 {[%clk
00:00:08]} {[%emt 00:00:06]} Bxc4 {[%clk 00:00:24]} {[%emt 00:00:12]} 35. dxc4
{[%clk 00:00:12]} Nxb3 {[%clk 00:00:23]} {[%emt 00:00:06]} 36. Kxb3 {[%clk
00:00:17]} Rf1 {[%clk 00:00:11]} {[%emt 00:00:16]} 37. a6 {[%clk 00:00:13]}
{[%emt 00:00:08]} Ra8 {[%clk 00:00:13]} {[%emt 00:00:04]} 38. Kb2 {[%clk
00:00:16]} {[%emt 00:00:02]} Ra7 {[%clk 00:00:12]} {[%emt 00:00:06]} 39. Ra5
{[%clk 00:00:19]} {[%emt 00:00:02]} Rf2+ {[%clk 00:00:15]} {[%emt 00:00:02]} 40.
Kb3 {[%clk 00:00:22]} {[%emt 00:00:02]} Rf3+ {[%clk 00:00:18]} {[%emt
00:00:02]} 41. Kb2 {[%clk 00:00:25]} {[%emt 00:00:01]} Rf6 {[%clk 00:00:17]}
{[%emt 00:00:06]} 42. Nb3 {[%clk 00:00:07]} {[%emt 00:00:22]} Raxa6 {[%clk
00:00:16]} {[%emt 00:00:07]} 43. Rxa6 {[%clk 00:00:07]} {[%emt 00:00:05]} Rxa6
{[%clk 00:00:20]} {[%emt 00:00:01]} 44. Nxc5 {[%clk 00:00:11]} Ra3 {[%clk
00:00:20]} {[%emt 00:00:05]} 45. Ne6+ {[%clk 00:00:07]} {[%emt 00:00:09]} Kf7
{[%clk 00:00:18]} {[%emt 00:00:07]} 46. Nc7 {[%clk 00:00:09]} {[%emt 00:00:04]}
Rxg3 {[%clk 00:00:20]} {[%emt 00:00:03]} 47. Nd5 {[%clk 00:00:12]} {[%emt
00:00:02]} Ke6 {[%clk 00:00:19]} {[%emt 00:00:06]} 48. c5 {[%clk 00:00:14]}
{[%emt 00:00:03]} Kd7 {[%clk 00:00:16]} {[%emt 00:00:08]} 0-1

[Event "Rapid Tournament"]
[Site "Biel, Switzerland"]
[Date "2021.07.25"]
[Round "4.3"]
[White "Gelfand, Boris"]
[Black "Kamsky, Gata"]
[Result "0-1"]
[TimeControl "15min + 5 sec per move"]
[WhiteTitle "GM"]
[BlackTitle "GM"]
[WhiteFideId "2805677"]
[BlackFideId "2000024"]
[WhiteElo "2702"]
[BlackElo "2701"]

1. d4 {[%clk 00:15:09]} {[%emt 00:00:01]} Nf6 {[%clk 00:15:03]} {[%emt
00:00:07]} 2. c4 {[%clk 00:15:13]} {[%emt 00:00:01]} e6 {[%clk 00:15:06]}
{[%emt 00:00:01]} 3. Nf3 {[%clk 00:15:13]} {[%emt 00:00:05]} b6 {[%clk
00:15:04]} {[%emt 00:00:06]} 4. g3 {[%clk 00:15:15]} {[%emt 00:00:04]} Bb4+
{[%clk 00:14:53]} {[%emt 00:00:16]} 5. Bd2 {[%clk 00:15:18]} {[%emt 00:00:03]}
Bxd2+ {[%clk 00:14:53]} {[%emt 00:00:05]} 6. Qxd2 {[%clk 00:15:21]} {[%emt
00:00:03]} Bb7 {[%clk 00:14:50]} {[%emt 00:00:07]} 7. Bg2 {[%clk 00:15:23]}
{[%emt 00:00:03]} d6 {[%clk 00:14:22]} {[%emt 00:00:32]} 8. O-O {[%clk
00:15:06]} {[%emt 00:00:23]} Nbd7 {[%clk 00:14:23]} {[%emt 00:00:03]} 9. d5
{[%clk 00:14:20]} {[%emt 00:00:52]} e5 {[%clk 00:11:58]} {[%emt 00:02:29]} 10.
Nc3 {[%clk 00:14:13]} {[%emt 00:00:12]} O-O {[%clk 00:11:56]} {[%emt 00:00:07]}
11. e4 {[%clk 00:10:04]} {[%emt 00:04:15]} a5 {[%clk 00:11:55]} {[%emt
00:00:05]} 12. Ne1 {[%clk 00:09:57]} {[%emt 00:00:12]} Nc5 {[%clk 00:11:45]}
{[%emt 00:00:15]} 13. Nc2 {[%clk 00:10:01]} {[%emt 00:00:01]} Re8 {[%clk
00:11:13]} {[%emt 00:00:36]} 14. Rae1 {[%clk 00:09:57]} {[%emt 00:00:09]} c6
{[%clk 00:10:59]} {[%emt 00:00:19]} 15. dxc6 {[%clk 00:09:38]} {[%emt
00:00:24]} Bxc6 {[%clk 00:11:02]} {[%emt 00:00:02]} 16. f3 {[%clk 00:09:42]}
{[%emt 00:00:01]} Qc7 {[%clk 00:10:26]} {[%emt 00:00:41]} 17. Ne3 {[%clk
00:07:58]} {[%emt 00:01:50]} Rad8 {[%clk 00:10:08]} {[%emt 00:00:23]} 18. Rd1
{[%clk 00:07:22]} {[%emt 00:00:41]} g6 {[%clk 00:09:58]} {[%emt 00:00:15]} 19.
Bh3 {[%clk 00:04:31]} {[%emt 00:02:56]} Kh8 {[%clk 00:08:45]} {[%emt 00:01:17]}
20. Rf2 {[%clk 00:04:17]} {[%emt 00:00:19]} Rf8 {[%clk 00:07:37]} {[%emt
00:01:13]} 21. Qe1 {[%clk 00:03:51]} {[%emt 00:00:32]} Qb8 {[%clk 00:06:40]}
{[%emt 00:01:01]} 22. Rfd2 {[%clk 00:03:33]} {[%emt 00:00:24]} Ne8 {[%clk
00:06:41]} {[%emt 00:00:03]} 23. Nb5 {[%clk 00:02:44]} {[%emt 00:00:55]} f5
{[%clk 00:06:02]} {[%emt 00:00:43]} 24. exf5 {[%clk 00:02:05]} {[%emt
00:00:44]} Bxf3 {[%clk 00:06:04]} {[%emt 00:00:02]} 25. fxg6 {[%clk 00:02:09]}
{[%emt 00:00:02]} hxg6 {[%clk 00:06:07]} {[%emt 00:00:02]} 26. Rc1 {[%clk
00:01:07]} {[%emt 00:01:08]} Ne4 {[%clk 00:06:09]} {[%emt 00:00:02]} 27. Rdc2
{[%clk 00:01:11]} Ng5 {[%clk 00:06:00]} {[%emt 00:00:15]} 28. Bg2 {[%clk
00:01:16]} Bxg2 {[%clk 00:05:57]} {[%emt 00:00:08]} 29. Kxg2 {[%clk 00:01:19]}
{[%emt 00:00:01]} Qb7+ {[%clk 00:05:41]} {[%emt 00:00:20]} 30. Nd5 {[%clk
00:01:24]} {[%emt 00:00:01]} Nf6 {[%clk 00:05:35]} {[%emt 00:00:10]} 31. Nbc7
{[%clk 00:00:56]} {[%emt 00:00:33]} Qc8 {[%clk 00:05:10]} {[%emt 00:00:30]} 32.
Nxf6 {[%clk 00:00:37]} {[%emt 00:00:25]} Qh3+ {[%clk 00:04:48]} {[%emt
00:00:27]} 33. Kh1 {[%clk 00:00:41]} Rxf6 {[%clk 00:04:51]} {[%emt 00:00:01]}
34. Nd5 {[%clk 00:00:40]} {[%emt 00:00:07]} Rf3 {[%clk 00:04:32]} {[%emt
00:00:23]} 35. Rf2 {[%clk 00:00:41]} {[%emt 00:00:05]} Rdf8 {[%clk 00:04:29]}
{[%emt 00:00:08]} 36. Rxf3 {[%clk 00:00:23]} {[%emt 00:00:24]} Rxf3 {[%clk
00:04:31]} {[%emt 00:00:02]} 37. Qe2 {[%clk 00:00:21]} {[%emt 00:00:08]} Rxg3
{[%clk 00:03:17]} {[%emt 00:01:19]} 38. Rf1 {[%clk 00:00:24]} {[%emt 00:00:01]}
Ne4 {[%clk 00:01:42]} {[%emt 00:01:40]} 39. Rf8+ {[%clk 00:00:18]} {[%emt
00:00:13]} Kg7 {[%clk 00:01:45]} {[%emt 00:00:02]} 40. Qf1 {[%clk 00:00:22]}
{[%emt 00:00:01]} Qxf1+ {[%clk 00:01:28]} {[%emt 00:00:21]} 41. Rxf1 {[%clk
00:00:26]} {[%emt 00:00:01]} Rd3 {[%clk 00:01:31]} {[%emt 00:00:02]} 42. Nc7
{[%clk 00:00:14]} {[%emt 00:00:17]} Rd2 {[%clk 00:01:11]} {[%emt 00:00:25]} 43.
Ne6+ {[%clk 00:00:17]} {[%emt 00:00:02]} Kh6 {[%clk 00:01:15]} {[%emt
00:00:01]} 44. Re1 {[%clk 00:00:07]} {[%emt 00:00:15]} Nf2+ {[%clk 00:01:14]}
{[%emt 00:00:05]} 45. Kg1 {[%clk 00:00:12]} {[%emt 00:00:01]} Rxb2 {[%clk
00:01:15]} {[%emt 00:00:04]} 46. Re3 {[%clk 00:00:14]} {[%emt 00:00:03]} g5
{[%clk 00:01:10]} {[%emt 00:00:09]} 47. Rf3 {[%clk 00:00:16]} {[%emt 00:00:03]}
Ne4 {[%clk 00:01:11]} {[%emt 00:00:03]} 48. Re3 {[%clk 00:00:11]} {[%emt
00:00:10]} Nd2 {[%clk 00:01:06]} {[%emt 00:00:10]} 49. Rg3 {[%clk 00:00:10]}
{[%emt 00:00:07]} g4 {[%clk 00:01:09]} {[%emt 00:00:01]} 50. h3 {[%clk
00:00:09]} {[%emt 00:00:06]} gxh3 {[%clk 00:01:05]} {[%emt 00:00:10]} 51. Rxh3+
{[%clk 00:00:14]} Kg6 {[%clk 00:01:08]} {[%emt 00:00:02]} 0-1

[Event "Rapid Tournament"]
[Site "Biel, Switzerland"]
[Date "2021.07.25"]
[Round "4.4"]
[White "Alekseenko, Kirill"]
[Black "Lagarde, Maxime"]
[Result "0-1"]
[TimeControl "15min + 5 sec per move"]
[WhiteTitle "GM"]
[BlackTitle "GM"]
[WhiteFideId "4135539"]
[BlackFideId "662399"]
[WhiteElo "2661"]
[BlackElo "2684"]

1. e4 {[%clk 00:15:08]} {[%emt 00:00:01]} e6 {[%clk 00:15:09]} {[%emt
00:00:01]} 2. d4 {[%clk 00:15:11]} {[%emt 00:00:03]} d5 {[%clk 00:15:13]}
{[%emt 00:00:01]} 3. e5 {[%clk 00:15:10]} {[%emt 00:00:05]} c5 {[%clk
00:15:16]} {[%emt 00:00:02]} 4. c3 {[%clk 00:15:14]} Nc6 {[%clk 00:15:20]} 5.
Nf3 {[%clk 00:15:17]} {[%emt 00:00:02]} Bd7 {[%clk 00:15:24]} {[%emt 00:00:01]}
6. Bd3 {[%clk 00:15:09]} {[%emt 00:00:12]} cxd4 {[%clk 00:15:15]} {[%emt
00:00:15]} 7. cxd4 {[%clk 00:14:51]} {[%emt 00:00:23]} Qb6 {[%clk 00:15:15]}
{[%emt 00:00:05]} 8. O-O {[%clk 00:14:25]} {[%emt 00:00:31]} Nxd4 {[%clk
00:15:12]} {[%emt 00:00:08]} 9. Nxd4 {[%clk 00:13:54]} {[%emt 00:00:36]} Qxd4
{[%clk 00:15:15]} {[%emt 00:00:02]} 10. Nc3 {[%clk 00:13:59]} a6 {[%clk
00:14:06]} {[%emt 00:01:15]} 11. Re1 {[%clk 00:12:42]} {[%emt 00:01:20]} Rc8
{[%clk 00:14:05]} {[%emt 00:00:06]} 12. a3 {[%clk 00:11:41]} {[%emt 00:01:07]}
Bc5 {[%clk 00:12:44]} {[%emt 00:01:26]} 13. Be3 {[%clk 00:11:36]} {[%emt
00:00:10]} Qh4 {[%clk 00:12:46]} {[%emt 00:00:03]} 14. g3 {[%clk 00:08:14]}
{[%emt 00:03:27]} Qd8 {[%clk 00:11:11]} {[%emt 00:01:39]} 15. Bxc5 {[%clk
00:08:06]} {[%emt 00:00:13]} Rxc5 {[%clk 00:11:14]} {[%emt 00:00:02]} 16. Qg4
{[%clk 00:08:04]} {[%emt 00:00:07]} g6 {[%clk 00:10:43]} {[%emt 00:00:37]} 17.
Rac1 {[%clk 00:08:06]} {[%emt 00:00:03]} Ne7 {[%clk 00:08:55]} {[%emt
00:01:53]} 18. h4 {[%clk 00:08:10]} {[%emt 00:00:01]} Rc7 {[%clk 00:05:42]}
{[%emt 00:03:18]} 19. h5 {[%clk 00:07:36]} {[%emt 00:00:38]} Bc6 {[%clk
00:04:43]} {[%emt 00:01:04]} 20. Ne2 {[%clk 00:06:41]} {[%emt 00:01:01]} Bd7
{[%clk 00:04:13]} {[%emt 00:00:35]} 21. Nd4 {[%clk 00:05:40]} {[%emt 00:01:06]}
Rxc1 {[%clk 00:04:03]} {[%emt 00:00:15]} 22. Rxc1 {[%clk 00:05:44]} Nc6 {[%clk
00:03:50]} {[%emt 00:00:18]} 23. Nf3 {[%clk 00:05:19]} {[%emt 00:00:30]} f5
{[%clk 00:03:43]} {[%emt 00:00:12]} 24. Qf4 {[%clk 00:04:12]} {[%emt 00:01:12]}
gxh5 {[%clk 00:03:39]} {[%emt 00:00:09]} 25. b4 {[%clk 00:03:30]} {[%emt
00:00:48]} Qe7 {[%clk 00:03:38]} {[%emt 00:00:06]} 26. b5 {[%clk 00:03:22]}
{[%emt 00:00:13]} axb5 {[%clk 00:03:41]} {[%emt 00:00:02]} 27. Bxb5 {[%clk
00:03:24]} {[%emt 00:00:02]} Rg8 {[%clk 00:02:58]} {[%emt 00:00:47]} 28. Qh6
{[%clk 00:03:26]} {[%emt 00:00:04]} Qf7 {[%clk 00:02:40]} {[%emt 00:00:23]} 29.
Be2 {[%clk 00:02:08]} {[%emt 00:01:23]} Rg6 {[%clk 00:02:27]} {[%emt 00:00:18]}
30. Qxh5 {[%clk 00:01:50]} {[%emt 00:00:22]} Rxg3+ {[%clk 00:02:25]} {[%emt
00:00:08]} 0-1

[ePGN "0.1;DGT LiveChess/2.2.5"]

[Event "Rapid Tournament"]
[Site "Biel, Switzerland"]
[Date "2021.07.25"]
[Round "5.1"]
[White "Studer, Noël"]
[Black "Alekseenko, Kirill"]
[Result "0-1"]
[TimeControl "15min + 5 sec per move"]
[WhiteTitle "GM"]
[BlackTitle "GM"]
[WhiteFideId "1319620"]
[BlackFideId "4135539"]
[WhiteElo "2431"]
[BlackElo "2661"]

1. d4 {[%clk 00:15:08]} {[%emt 00:00:01]} d5 {[%clk 00:15:08]} {[%emt
00:00:02]} 2. c4 {[%clk 00:15:12]} {[%emt 00:00:01]} dxc4 {[%clk 00:15:12]}
{[%emt 00:00:01]} 3. Nf3 {[%clk 00:15:16]} {[%emt 00:00:01]} a6 {[%clk
00:15:16]} {[%emt 00:00:01]} 4. e3 {[%clk 00:15:19]} {[%emt 00:00:01]} Bg4
{[%clk 00:15:17]} {[%emt 00:00:04]} 5. Bxc4 {[%clk 00:15:22]} {[%emt 00:00:03]}
e6 {[%clk 00:15:21]} {[%emt 00:00:01]} 6. Nc3 {[%clk 00:15:22]} {[%emt
00:00:05]} Nc6 {[%clk 00:15:25]} {[%emt 00:00:01]} 7. h3 {[%clk 00:14:05]}
{[%emt 00:01:21]} Bh5 {[%clk 00:15:28]} {[%emt 00:00:02]} 8. O-O {[%clk
00:14:09]} {[%emt 00:00:02]} Nf6 {[%clk 00:15:32]} {[%emt 00:00:02]} 9. Re1
{[%clk 00:14:06]} {[%emt 00:00:08]} Bd6 {[%clk 00:14:48]} {[%emt 00:00:48]} 10.
Bf1 {[%clk 00:11:42]} {[%emt 00:02:30]} O-O {[%clk 00:14:36]} {[%emt 00:00:17]}
11. g4 {[%clk 00:11:46]} {[%emt 00:00:01]} Bg6 {[%clk 00:14:39]} {[%emt
00:00:02]} 12. e4 {[%clk 00:11:36]} {[%emt 00:00:14]} Bb4 {[%clk 00:13:26]}
{[%emt 00:01:18]} 13. Bg5 {[%clk 00:09:05]} {[%emt 00:02:36]} Qd7 {[%clk
00:11:47]} {[%emt 00:01:44]} 14. d5 {[%clk 00:06:03]} {[%emt 00:03:08]} Bxc3
{[%clk 00:11:29]} {[%emt 00:00:22]} 15. bxc3 {[%clk 00:06:07]} exd5 {[%clk
00:10:52]} {[%emt 00:00:42]} 16. Bxf6 {[%clk 00:06:08]} {[%emt 00:00:04]} gxf6
{[%clk 00:10:56]} {[%emt 00:00:02]} 17. exd5 {[%clk 00:06:03]} {[%emt
00:00:10]} Na5 {[%clk 00:09:08]} {[%emt 00:01:53]} 18. c4 {[%clk 00:05:34]}
{[%emt 00:00:33]} b6 {[%clk 00:08:59]} {[%emt 00:00:14]} 19. Qd4 {[%clk
00:03:55]} {[%emt 00:01:44]} Qd6 {[%clk 00:08:25]} {[%emt 00:00:38]} 20. Re3
{[%clk 00:03:54]} {[%emt 00:00:07]} Rfe8 {[%clk 00:08:20]} {[%emt 00:00:09]} 21.
Rae1 {[%clk 00:03:36]} {[%emt 00:00:23]} Rxe3 {[%clk 00:08:24]} {[%emt
00:00:01]} 22. Rxe3 {[%clk 00:03:41]} Rd8 {[%clk 00:08:24]} {[%emt 00:00:04]}
23. Nd2 {[%clk 00:03:21]} {[%emt 00:00:25]} Nb7 {[%clk 00:07:00]} {[%emt
00:01:29]} 24. h4 {[%clk 00:02:58]} {[%emt 00:00:28]} h6 {[%clk 00:07:03]}
{[%emt 00:00:02]} 25. Rf3 {[%clk 00:01:47]} {[%emt 00:01:16]} Qe5 {[%clk
00:06:39]} {[%emt 00:00:29]} 26. Nb3 {[%clk 00:01:44]} {[%emt 00:00:08]} c5
{[%clk 00:05:22]} {[%emt 00:01:22]} 27. Qd2 {[%clk 00:01:40]} {[%emt 00:00:10]}
Kg7 {[%clk 00:05:04]} {[%emt 00:00:23]} 28. a4 {[%clk 00:00:58]} {[%emt
00:00:46]} a5 {[%clk 00:05:02]} {[%emt 00:00:08]} 29. Rg3 {[%clk 00:00:38]}
{[%emt 00:00:25]} Nd6 {[%clk 00:03:51]} {[%emt 00:01:16]} 30. f4 {[%clk
00:00:41]} {[%emt 00:00:02]} Qe8 {[%clk 00:03:55]} 31. Re3 {[%clk 00:00:37]}
{[%emt 00:00:09]} Qxa4 {[%clk 00:03:30]} {[%emt 00:00:31]} 32. f5 {[%clk
00:00:10]} {[%emt 00:00:32]} Nxc4 {[%clk 00:03:33]} {[%emt 00:00:01]} 33. Bxc4
{[%clk 00:00:09]} {[%emt 00:00:07]} Qxc4 {[%clk 00:03:36]} {[%emt 00:00:01]} 34.
fxg6 {[%clk 00:00:12]} {[%emt 00:00:02]} Qxg4+ {[%clk 00:03:11]} {[%emt
00:00:29]} 35. Kh2 {[%clk 00:00:08]} {[%emt 00:00:10]} Qxh4+ {[%clk 00:02:50]}
{[%emt 00:00:26]} 36. Rh3 {[%clk 00:00:12]} {[%emt 00:00:01]} Qg5 {[%clk
00:02:50]} {[%emt 00:00:05]} 37. Qe2 {[%clk 00:00:06]} {[%emt 00:00:13]} Rxd5
{[%emt 00:00:25]} 38. Rg3 Qh5+ {[%clk 00:02:30]} {[%emt 00:00:04]} 0-1